fUSD/lending_fUSD_20240902
["ID","MTS","AMOUNT","RATE_DAILY","PERIOD"]
[336896747,1725237048000,-500.0,0.00022469,2]
[336896749,1725237048010,-1521.75,0.00022469,2]
[336896751,1725237048020,-1061.38,0.00022469,2]
[336896753,1725237048029,-1149.85,0.00022469,2]
[336896755,1725237048039,-572.19,0.00022469,2]
[336896757,1725237048048,-679.91,0.00022469,2]
[336896759,1725237048058,-500.0,0.00022469,2]
[336896761,1725237048068,-500.0,0.00022469,2]
[336896763,1725237048077,-1259.93,0.00022469,2]
[336896765,1725237048087,-1642.12,0.00022469,2]
[336896767,1725237048096,-500.0,0.00022469,2]
[336896769,1725237048106,-500.0,0.00022469,2]
[336896771,1725237048115,-982.89,0.00022469,2]
[336896773,1725237048125,-1150.36,0.00022469,2]
[336896775,1725237048136,-500.0,0.00022469,2]
[336896778,1725237048145,-1467.05,0.00022469,2]
[336896780,1725237048155,-776.18,0.00022469,2]
[336896782,1725237048166,-500.0,0.00022469,2]
[336896784,1725237048176,-628.6,0.00022469,2]
[336896786,1725237048185,-500.0,0.00022469,2]
[336896788,1725237048195,-590.86811532,0.00022469,2]
[336896790,1725237048204,-500.0,0.00022469,2]
[336896792,1725237048215,-311.64088137,0.00022469,2]
[336896794,1725237048224,-1015.71,0.00022469,2]
[336896796,1725237048234,-500.0,0.00022469,2]
[336896798,1725237048244,-500.0,0.00022469,2]
[336896800,1725237048253,-500.0,0.00022469,2]
[336896802,1725237048263,-500.0,0.00022469,2]
[336896804,1725237048272,-500.0,0.00022469,2]
[336896806,1725237048282,-1022.81,0.00022469,2]
[336896808,1725237048292,-925.82,0.00022469,2]
[336896810,1725237048302,-1051.52,0.00022469,2]
[336896812,1725237048311,-500.0,0.00022469,2]
[336896813,1725237048320,-653.39,0.00022469,2]
[336896815,1725237048329,-899.63,0.00022469,2]
[336896817,1725237048339,-500.0,0.00022469,2]
[336896820,1725237048349,-500.0,0.00022469,2]
[336896822,1725237048358,-687.23,0.00022469,2]
[336896824,1725237048367,-1445.11,0.00022469,2]
[336896826,1725237048377,-1384.69,0.00022469,2]
[336896828,1725237048386,-500.0,0.00022469,2]
[336896830,1725237048395,-500.0,0.00022469,2]
[336896832,1725237048404,-500.0,0.00022469,2]
[336896834,1725237048414,-1005.26,0.00022469,2]
[336896835,1725237048423,-308.254473,0.00022469,7]
[336896838,1725237048433,-308.254473,0.00022469,7]
[336896840,1725237048444,-1794.89,0.00022469,2]
[336896842,1725237048453,-308.254473,0.00022469,7]
[336896844,1725237048462,-500.0,0.00022469,2]
[336896846,1725237048472,-500.0,0.00022469,2]
[336896848,1725237048481,-308.254473,0.00022469,7]
[336896850,1725237048491,-308.254473,0.00022469,7]
[336896852,1725237048499,-308.254473,0.00022469,7]
[336896854,1725237048509,-565.24526861,0.00022469,2]
[336896856,1725237048518,-606.37781847,0.00022469,2]
[336896858,1725237048527,-500.0,0.00022469,2]
[336896860,1725237048537,-2372.63,0.00022469,2]
[336896862,1725237048546,-631.64,0.00022469,2]
[336896864,1725237048556,-1090.69,0.00022469,2]
[336896866,1725237048566,-525.35,0.00022469,2]
[336896868,1725237048580,-1282.34,0.00022469,2]
[336896870,1725237048597,-151.0,0.00022469,7]
[336896872,1725237048606,-500.0,0.00022469,2]
[336896874,1725237048615,-151.0,0.00022469,7]
[336896876,1725237048625,-151.509024,0.00022469,7]
[336896878,1725237048636,-500.0,0.00022469,2]
[336896880,1725237048646,-500.0,0.00022469,2]
[336896882,1725237048655,-1324.25,0.00022469,2]
[336896884,1725237048664,-932.27,0.00022469,2]
[336896886,1725237048674,-500.0,0.00022469,2]
[336896888,1725237048683,-603.18,0.00022469,2]
[336896890,1725237048692,-1315.19,0.00022469,2]
[336896891,1725237048701,-500.0,0.00022469,2]
[336896893,1725237048711,-593.63,0.00022469,2]
[336896895,1725237048721,-500.0,0.00022469,2]
[336896897,1725237048730,-876.82,0.00022469,2]
[336896899,1725237048740,-500.0,0.00022469,2]
[336896902,1725237048750,-500.0,0.00022469,2]
[336896904,1725237048760,-500.0,0.00022469,2]
[336896906,1725237048769,-1349.86,0.00022469,2]
[336896908,1725237048779,-541.64384043,0.00022469,2]
[336896910,1725237048788,-1285.76,0.00022469,2]
[336896912,1725237048797,-579.21,0.00022469,2]
[336896914,1725237048807,-500.0,0.00022469,2]
[336896916,1725237048817,-1211.61,0.00022469,2]
[336896918,1725237048827,-500.0,0.00022469,2]
[336896920,1725237048838,-500.0,0.00022469,2]
[336896922,1725237048848,-500.0,0.00022469,2]
[336896924,1725237048858,-1085.01,0.00022469,2]
[336896926,1725237048867,-1077.01,0.00022469,2]
[336896928,1725237048877,-500.0,0.00022469,2]
[336896930,1725237048886,-500.0,0.00022469,2]
[336896932,1725237048896,-500.0,0.00022469,2]
[336896934,1725237048906,-4245.29,0.00022469,2]
[336896936,1725237048915,-754.45,0.00022469,2]
[336896938,1725237048924,-151.0,0.00022469,7]
[336896940,1725237048933,-151.713548,0.00022469,7]
[336896942,1725237048943,-961.76,0.00022469,2]
[336896944,1725237048953,-500.0,0.00022469,2]
[336896946,1725237048963,-2868.7,0.00022469,2]
[336896948,1725237048972,-1209.55,0.00022469,2]
[336896950,1725237048981,-934.87,0.00022469,2]
[336896952,1725237048990,-500.0,0.00022469,2]
[336896954,1725237048999,-2732.49,0.00022469,2]
[336896956,1725237049009,-1571.6,0.00022469,2]
[336896958,1725237049018,-500.0,0.00022469,2]
[336896960,1725237049028,-151.0,0.00022469,7]
[336896962,1725237049037,-174.90359,0.00022469,7]
[336896964,1725237049046,-1196.06,0.00022469,2]
[336896966,1725237049056,-500.0,0.00022469,2]
[336896968,1725237049065,-500.0,0.00022469,2]
[336896970,1725237049075,-500.0,0.00022469,2]
[336896972,1725237049095,-500.0,0.00022469,2]
[336896974,1725237049104,-564.81,0.00022469,2]
[336896976,1725237049114,-500.0,0.00022469,2]
[336896978,1725237049124,-1519.02,0.00022469,2]
[336896980,1725237049138,-1243.09,0.00022469,2]
[336897001,1725237049358,-500.0,0.00022469,2]
[336897003,1725237049367,-2438.73,0.00022469,2]
[336897005,1725237049377,-603.35,0.00022469,2]
[336897007,1725237049386,-500.0,0.00022469,2]
[336897009,1725237049395,-500.0,0.00022469,2]
[336897011,1725237049405,-649.33,0.00022469,2]
[336897013,1725237049414,-500.0,0.00022469,2]
[336897015,1725237049424,-500.0,0.00022469,2]
[336897017,1725237049434,-500.0,0.00022469,2]
[336897019,1725237049443,-151.0,0.00022469,7]
[336897022,1725237049452,-290.917714,0.00022469,7]
[336897024,1725237049462,-500.0,0.00022469,2]
[336897026,1725237049471,-1478.38,0.00022469,2]
[336897028,1725237049481,-1162.01,0.00022469,2]
[336897030,1725237049490,-904.65,0.00022469,2]
[336897032,1725237049499,-500.0,0.00022469,2]
[336897034,1725237049508,-743.76,0.00022469,2]
[336897036,1725237049518,-500.0,0.00022469,2]
[336897037,1725237049526,-500.0,0.00022469,2]
[336897039,1725237049535,-1653.68,0.00022469,2]
[336897041,1725237049544,-1166.2,0.00022469,2]
[336897043,1725237049553,-1332.7,0.00022469,2]
[336897045,1725237049562,-500.0,0.00022469,2]
[336897047,1725237049571,-500.0,0.00022469,2]
[336897049,1725237049587,-500.0,0.00022469,2]
[336897051,1725237049601,-687.38,0.00022469,2]
[336897053,1725237049611,-677.74,0.00022469,2]
[336897055,1725237049620,-559.67,0.00022469,2]
[336897057,1725237049629,-500.0,0.00022469,2]
[336897059,1725237049638,-532.15051497,0.00022469,2]
[336897061,1725237049647,-1069.51,0.00022469,2]
[336897063,1725237049657,-500.0,0.00022469,2]
[336897065,1725237049666,-500.0,0.00022469,2]
[336897067,1725237049675,-1100.51,0.00022469,2]
[336897069,1725237049684,-1121.84,0.00022469,2]
[336897071,1725237049693,-500.0,0.00022469,2]
[336897073,1725237049702,-500.0,0.00022469,2]
[336897075,1725237049711,-500.0,0.00022469,2]
[336897076,1725237049721,-500.0,0.00022469,2]
[336897078,1725237049730,-4361.71,0.00022469,2]
[336897080,1725237049739,-1012.99,0.00022469,2]
[336897082,1725237049749,-1269.34,0.00022469,2]
[336897083,1725237049757,-1379.54,0.00022469,2]
[336897085,1725237049766,-4893.956872,0.00022469,7]
[336897087,1725237049777,-4893.956872,0.00022469,7]
[336897089,1725237049788,-400.0,0.00022469,2]
[336897091,1725237049799,-4893.956872,0.00022469,7]
[336897094,1725237049810,-500.0,0.00022469,2]
[336897096,1725237049819,-4893.956872,0.00022469,7]
[336897098,1725237049832,-1752.97,0.00022469,2]
[336897100,1725237049844,-4893.956872,0.00022469,7]
[336897102,1725237049854,-500.0,0.00022469,2]
[336897103,1725237049863,-4893.956872,0.00022469,7]
[336897105,1725237049872,-704.44,0.00022469,2]
[336897107,1725237049881,-1002.43,0.00022469,2]
[336897109,1725237049890,-500.0,0.00022469,2]
[336897111,1725237049899,-1125.56,0.00022469,2]
[336897113,1725237049908,-500.0,0.00022469,2]
[336897115,1725237049917,-573.3,0.00022469,2]
[336897117,1725237049926,-967.65,0.00022469,2]
[336897119,1725237049935,-500.0,0.00022469,2]
[336897121,1725237049944,-500.0,0.00022469,2]
[336897123,1725237049954,-1098.28,0.00022469,2]
[336897124,1725237049963,-1429.67,0.00022469,2]
[336897126,1725237049973,-500.0,0.00022469,2]
[336897128,1725237049982,-584.89,0.00022469,2]
[336897130,1725237049991,-2386.68,0.00022469,2]
[336897132,1725237050000,-1434.14,0.00022469,2]
[336897134,1725237050010,-1148.28,0.00022469,2]
[336897136,1725237050019,-1207.46,0.00022469,2]
[336897138,1725237050029,-500.0,0.00022469,2]
[336897140,1725237050038,-500.0,0.00022469,2]
[336897142,1725237050047,-1340.58,0.00022469,2]
[336897144,1725237050056,-730.95,0.00022469,2]
[336897146,1725237050066,-500.0,0.00022469,2]
[336897148,1725237050075,-577.68,0.00022469,2]
[336897150,1725237050090,-500.0,0.00022469,2]
[336897152,1725237050099,-500.0,0.00022473,2]
[336897153,1725237050109,-150.0,0.00022473,2]
[336897154,1725237050119,-941.0,0.00022476,2]
[336897155,1725237050128,-500.0,0.00022477,2]
[336897156,1725237050137,-541.30936249,0.00022477,2]
[336897157,1725237050147,-500.0,0.00022477,2]
[336897158,1725237050158,-500.0,0.00022477,2]
[336897159,1725237050167,-500.0,0.00022477,2]
[336897160,1725237050176,-500.0,0.00022477,2]
[336897161,1725237050186,-500.0,0.00022477,2]
[336897162,1725237050195,-500.0,0.00022477,2]
[336897163,1725237050206,-500.0,0.00022477,2]
[336897164,1725237050216,-500.0,0.00022477,2]
[336897165,1725237050225,-500.0,0.00022477,2]
[336897166,1725237050234,-500.0,0.00022477,2]
[336897167,1725237050245,-500.0,0.00022477,2]
[336897168,1725237050254,-500.0,0.00022477,2]
[336897170,1725237050264,-500.0,0.00022477,2]
[336897172,1725237050273,-500.0,0.00022477,2]
[336897174,1725237050282,-500.0,0.00022477,2]
[336897176,1725237050291,-500.0,0.00022477,2]
[336897178,1725237050300,-500.0,0.00022477,2]
[336897180,1725237050309,-500.0,0.00022477,2]
[336897181,1725237050318,-500.0,0.00022477,2]
[336897183,1725237050330,-502.59709163,0.00022477,2]
[336897185,1725237050339,-500.0,0.00022477,2]
[336897187,1725237050348,-500.0,0.00022477,2]
[336897189,1725237050357,-1465.98,0.00022477,2]
[336897191,1725237050366,-500.0,0.00022477,2]
[336897193,1725237050375,-500.0,0.00022477,2]
[336897195,1725237050384,-500.0,0.00022477,2]
[336897197,1725237050393,-500.0,0.00022477,2]
[336897199,1725237050402,-500.0,0.00022477,2]
[336897201,1725237050412,-500.0,0.00022477,2]
[336897203,1725237050421,-500.0,0.00022477,2]
[336897205,1725237050430,-500.0,0.00022477,2]
[336897207,1725237050439,-500.0,0.00022477,2]
[336897209,1725237050448,-504.06178721,0.00022477,2]
[336897211,1725237050457,-500.0,0.00022477,2]
[336897213,1725237050466,-500.0,0.00022477,2]
[336897214,1725237050474,-500.0,0.00022477,2]
[336897216,1725237050483,-500.0,0.00022477,2]
[336897218,1725237050492,-1301.05,0.00022477,2]
[336897220,1725237050501,-500.0,0.00022477,2]
[336897222,1725237050511,-1377.04,0.00022477,2]
[336897224,1725237050519,-500.0,0.00022477,2]
[336897226,1725237050529,-500.0,0.00022477,2]
[336897228,1725237050538,-965.62,0.00022477,2]
[336897230,1725237050547,-913.81,0.00022477,2]
[336897232,1725237050556,-500.0,0.00022477,2]
[336897234,1725237050565,-568.81605646,0.00022477,2]
[336897236,1725237050574,-500.0,0.00022477,2]
[336897238,1725237050584,-500.0,0.00022477,2]
[336897240,1725237050593,-500.0,0.00022477,2]
[336897242,1725237050602,-500.0,0.00022477,2]
[336897244,1725237050611,-500.0,0.00022477,2]
[336897246,1725237050619,-500.0,0.00022477,2]
[336897248,1725237050628,-767.42,0.00022477,2]
[336897250,1725237050638,-1408.04,0.00022477,2]
[336897252,1725237050647,-500.0,0.00022477,2]
[336897254,1725237050655,-500.0,0.00022477,2]
[336897256,1725237050664,-500.0,0.00022477,2]
[336897258,1725237050674,-500.0,0.00022477,2]
[336897260,1725237050682,-500.0,0.00022477,2]
[336897261,1725237050691,-500.0,0.00022477,2]
[336897263,1725237050700,-500.0,0.00022477,2]
[336897265,1725237050710,-500.0,0.00022477,2]
[336897267,1725237050720,-1282.99,0.00022477,2]
[336897269,1725237050729,-500.0,0.00022477,2]
[336897271,1725237050739,-500.0,0.00022477,2]
[336897274,1725237050750,-500.0,0.00022477,2]
[336897276,1725237050760,-500.0,0.00022477,2]
[336897278,1725237050772,-500.0,0.00022477,2]
[336897280,1725237050782,-500.0,0.00022477,2]
[336897282,1725237050791,-702.42,0.00022477,2]
[336897284,1725237050801,-500.0,0.00022477,2]
[336897285,1725237050811,-500.0,0.00022477,2]
[336897287,1725237050820,-1332.82,0.00022477,2]
[336897289,1725237050831,-500.0,0.00022477,2]
[336897291,1725237050840,-500.0,0.00022477,2]
[336897293,1725237050850,-500.0,0.00022477,2]
[336897295,1725237050859,-500.0,0.00022477,2]
[336897297,1725237050869,-500.0,0.00022477,2]
[336897299,1725237050878,-500.0,0.00022477,2]
[336897301,1725237050888,-500.0,0.00022477,2]
[336897303,1725237050897,-500.0,0.00022477,2]
[336897305,1725237050906,-1086.57,0.00022477,2]
[336897307,1725237050915,-1048.92,0.00022477,2]
[336897309,1725237050924,-500.0,0.00022477,2]
[336897311,1725237050932,-500.0,0.00022477,2]
[336897313,1725237050941,-500.0,0.00022477,2]
[336897315,1725237050951,-501.64,0.00022477,2]
[336897317,1725237050960,-500.0,0.00022477,2]
[336897319,1725237050969,-696.44,0.00022477,2]
[336897321,1725237050978,-500.0,0.00022477,2]
[336897323,1725237050987,-565.86,0.00022477,2]
[336897325,1725237050996,-500.0,0.00022477,2]
[336897327,1725237051005,-605.22652519,0.00022477,2]
[336897329,1725237051014,-1097.94,0.00022477,2]
[336897331,1725237051023,-500.0,0.00022477,2]
[336897333,1725237051032,-500.0,0.00022477,2]
[336897334,1725237051041,-1006.95,0.00022477,2]
[336897336,1725237051050,-1232.79,0.00022477,2]
[336897338,1725237051059,-500.0,0.00022477,2]
[336897340,1725237051069,-548.62,0.00022477,2]
[336897342,1725237051079,-500.0,0.00022477,2]
[336897344,1725237051088,-1013.67,0.00022477,2]
[336897346,1725237051097,-500.0,0.00022477,2]
[336897348,1725237051106,-738.83,0.00022477,2]
[336897350,1725237051115,-500.0,0.00022477,2]
[336897352,1725237051124,-500.0,0.00022477,2]
[336897354,1725237051133,-501.21,0.00022477,2]
[336897356,1725237051142,-500.0,0.00022477,2]
[336897358,1725237051153,-1112.75,0.00022477,2]
[336897360,1725237051163,-1926.88,0.00022477,2]
[336897362,1725237051175,-508.25,0.00022477,2]
[336897364,1725237051184,-500.0,0.00022477,2]
[336897366,1725237051193,-795.61,0.00022477,2]
[336897368,1725237051203,-500.0,0.00022477,2]
[336897370,1725237051211,-532.26,0.00022477,2]
[336897372,1725237051220,-500.0,0.00022477,2]
[336897374,1725237051230,-1202.88,0.00022477,2]
[336897376,1725237051239,-735.33,0.00022477,2]
[336897378,1725237051248,-607.37,0.00022477,2]
[336897380,1725237051257,-500.0,0.00022477,2]
[336897382,1725237051266,-500.0,0.00022477,2]
[336897384,1725237051276,-500.0,0.00022477,2]
[336897386,1725237051285,-500.0,0.00022477,2]
[336897388,1725237051295,-500.0,0.00022477,2]
[336897390,1725237051304,-1163.37,0.00022477,2]
[336897392,1725237051313,-500.0,0.00022477,2]
[336897394,1725237051323,-910.33,0.00022477,2]
[336897396,1725237051333,-508.23,0.00022477,2]
[336897398,1725237051342,-2100.2,0.00022477,2]
[336897400,1725237051351,-500.0,0.00022477,2]
[336897402,1725237051361,-500.0,0.00022477,2]
[336897404,1725237051370,-783.14,0.00022477,2]
[336897405,1725237051379,-1239.57,0.00022477,2]
[336897407,1725237051388,-500.0,0.00022477,2]
[336897409,1725237051398,-500.0,0.00022477,2]
[336897411,1725237051407,-500.0,0.00022477,2]
[336897413,1725237051416,-1147.63,0.00022477,2]
[336897415,1725237051426,-773.03,0.00022477,2]
[336897417,1725237051435,-876.63,0.00022477,2]
[336897419,1725237051445,-833.18,0.00022477,2]
[336897421,1725237051454,-150.0,0.00022477,2]
[336897423,1725237051463,-500.0,0.00022477,2]
[336897425,1725237051472,-500.0,0.00022477,2]
[336897427,1725237051481,-500.0,0.00022477,2]
[336897429,1725237051490,-500.0,0.00022477,2]
[336897431,1725237051499,-500.0,0.00022477,2]
[336897433,1725237051509,-561.6,0.00022477,2]
[336897435,1725237051518,-500.0,0.00022477,2]
[336897437,1725237051527,-619.21,0.00022477,2]
[336897439,1725237051536,-1159.95,0.00022477,2]
[336897441,1725237051545,-500.0,0.00022477,2]
[336897443,1725237051555,-500.0,0.00022477,2]
[336897445,1725237051564,-500.0,0.00022477,2]
[336897447,1725237051573,-500.0,0.00022477,2]
[336897448,1725237051584,-500.0,0.00022477,2]
[336897450,1725237051593,-909.78,0.00022477,2]
[336897452,1725237051602,-500.0,0.00022477,2]
[336897454,1725237051611,-500.0,0.00022477,2]
[336897456,1725237051621,-500.0,0.00022477,2]
[336897458,1725237051630,-500.0,0.00022477,2]
[336897460,1725237051639,-500.0,0.00022477,2]
[336897461,1725237051649,-500.0,0.00022477,2]
[336897463,1725237051658,-803.75,0.00022477,2]
[336897465,1725237051669,-500.0,0.00022477,2]
[336897467,1725237051678,-500.43192134,0.00022477,2]
[336897469,1725237051688,-636.9,0.00022477,2]
[336897471,1725237051697,-500.0,0.00022477,2]
[336897472,1725237051707,-500.0,0.00022477,2]
[336897474,1725237051716,-500.0,0.00022477,2]
[336897476,1725237051725,-500.0,0.00022477,2]
[336897478,1725237051735,-500.0,0.00022477,2]
[336897480,1725237051744,-1188.05,0.00022477,2]
[336897482,1725237051753,-500.0,0.00022477,2]
[336897484,1725237051764,-500.0,0.00022477,2]
[336897485,1725237051773,-500.0,0.00022477,2]
[336897486,1725237051782,-1257.32,0.00022477,2]
[336897487,1725237051792,-500.0,0.00022477,2]
[336897488,1725237051802,-539.69,0.00022477,2]
[336897489,1725237051811,-196.08906074,0.00022477,2]
[336897490,1725237051821,-500.0,0.00022477,2]
[336897491,1725237051831,-989.1,0.00022477,2]
[336897492,1725237051847,-500.0,0.00022477,2]
[336897493,1725237051856,-930.65,0.00022477,2]
[336897494,1725237051865,-500.0,0.00022477,2]
[336897495,1725237051875,-871.99,0.00022477,2]
[336897496,1725237051884,-1087.54,0.00022477,2]
[336897497,1725237051893,-500.0,0.00022477,2]
[336897498,1725237051903,-1394.65,0.00022477,2]
[336897499,1725237051912,-1131.04,0.00022477,2]
[336897500,1725237051921,-1065.49,0.00022477,2]
[336897501,1725237051931,-500.0,0.00022477,2]
[336897502,1725237051940,-500.0,0.00022477,2]
[336897503,1725237051949,-639.66,0.00022477,2]
[336897504,1725237051958,-1205.96,0.00022477,2]
[336897505,1725237051967,-500.0,0.00022477,2]
[336897506,1725237051977,-512.00320309,0.00022477,2]
[336897507,1725237051986,-790.49,0.00022477,2]
[336897508,1725237051996,-500.0,0.00022477,2]
[336897509,1725237052005,-500.0,0.00022477,2]
[336897510,1725237052014,-620.8,0.00022477,2]
[336897511,1725237052023,-817.34,0.00022477,2]
[336897512,1725237052032,-564.88,0.00022477,2]
[336897513,1725237052042,-500.0,0.00022477,2]
[336897514,1725237052051,-551.15,0.00022477,2]
[336897515,1725237052061,-515.44,0.00022477,2]
[336897516,1725237052070,-500.0,0.00022477,2]
[336897517,1725237052082,-500.0,0.00022477,2]
[336897518,1725237052092,-500.0,0.00022477,2]
[336897519,1725237052102,-500.0,0.00022477,2]
[336897520,1725237052112,-782.71,0.00022477,2]
[336897521,1725237052121,-500.0,0.00022477,2]
[336897522,1725237052131,-500.0,0.00022477,2]
[336897523,1725237052141,-500.0,0.00022477,2]
[336897524,1725237052150,-1087.21,0.00022477,2]
[336897525,1725237052161,-500.0,0.00022477,2]
[336897526,1725237052174,-700.47,0.00022477,2]
[336897527,1725237052184,-1004.94,0.00022477,2]
[336897528,1725237052194,-500.0,0.00022477,2]
[336897529,1725237052205,-500.0,0.00022477,2]
[336897530,1725237052215,-544.37619137,0.00022477,2]
[336897531,1725237052224,-791.89,0.00022477,2]
[336897532,1725237052234,-794.94,0.00022477,2]
[336897533,1725237052243,-512.18,0.00022477,2]
[336897534,1725237052253,-225.91715302,0.00022477,2]
[336897535,1725237052262,-1155.62,0.00022477,2]
[336897536,1725237052272,-500.0,0.00022477,2]
[336897537,1725237052281,-662.73,0.00022477,2]
[336897538,1725237052290,-500.0,0.00022477,2]
[336897539,1725237052299,-500.0,0.00022477,2]
[336897540,1725237052309,-773.46,0.00022477,2]
[336897541,1725237052318,-500.0,0.00022477,2]
[336897542,1725237052327,-1376.3,0.00022477,2]
[336897543,1725237052338,-646.93,0.00022477,2]
[336897544,1725237052347,-609.07,0.00022477,2]
[336897545,1725237052356,-500.0,0.00022477,2]
[336897546,1725237052365,-500.0,0.00022477,2]
[336897547,1725237052374,-1062.37,0.00022477,2]
[336897548,1725237052383,-1133.61,0.00022477,2]
[336897549,1725237052392,-500.0,0.00022477,2]
[336897550,1725237052402,-500.0,0.00022477,2]
[336897551,1725237052411,-500.0,0.00022477,2]
[336897552,1725237052420,-500.0,0.00022477,2]
[336897553,1725237052429,-857.5,0.00022477,2]
[336897554,1725237052439,-624.41,0.00022477,2]
[336897555,1725237052448,-500.0,0.00022477,2]
[336897556,1725237052457,-500.0,0.00022477,2]
[336897557,1725237052466,-500.0,0.00022477,2]
[336897558,1725237052476,-500.0,0.00022477,2]
[336897559,1725237052485,-500.0,0.00022477,2]
[336897560,1725237052495,-500.0,0.00022477,2]
[336897561,1725237052504,-1142.07,0.00022477,2]
[336897562,1725237052514,-500.0,0.00022477,2]
[336897563,1725237052523,-562.26,0.00022477,2]
[336897564,1725237052532,-1144.43,0.00022477,2]
[336897565,1725237052542,-151.0,0.00022477,7]
[336897566,1725237052550,-500.0,0.00022477,2]
[336897567,1725237052559,-1415.97,0.00022477,2]
[336897568,1725237052568,-151.0,0.00022477,7]
[336897569,1725237052580,-500.0,0.00022477,2]
[336897570,1725237052588,-500.0,0.00022477,2]
[336897571,1725237052598,-775.05,0.00022477,2]
[336897572,1725237052606,-500.0,0.00022477,2]
[336897573,1725237052615,-1174.28,0.00022477,2]
[336897574,1725237052624,-929.91,0.00022477,2]
[336897575,1725237052633,-1207.84,0.00022477,2]
[336897576,1725237052642,-616.33,0.00022477,2]
[336897577,1725237052651,-500.0,0.00022477,2]
[336897578,1725237052660,-500.0,0.00022477,2]
[336897579,1725237052669,-1467.75,0.00022477,2]
[336897580,1725237052679,-737.55,0.00022477,2]
[336897581,1725237052689,-1148.84,0.00022477,2]
[336897582,1725237052698,-1216.02,0.00022477,2]
[336897583,1725237052908,-500.0,0.00022477,2]
[336897584,1725237052919,-500.0,0.00022477,2]
[336897585,1725237052929,-1826.3,0.00022477,2]
[336897586,1725237052938,-500.0,0.00022477,2]
[336897587,1725237052947,-500.0,0.00022477,2]
[336897588,1725237052956,-572.95149188,0.00022477,2]
[336897589,1725237052965,-500.0,0.00022477,2]
[336897590,1725237052974,-500.0,0.00022477,2]
[336897591,1725237052983,-1934.84,0.00022477,2]
[336897592,1725237052992,-649.48,0.00022477,2]
[336897593,1725237053001,-553.79,0.00022477,2]
[336897594,1725237053010,-1240.63,0.00022477,2]
[336897595,1725237053019,-748.74,0.00022477,2]
[336897596,1725237053028,-1426.67,0.00022477,2]
[336897597,1725237053038,-816.76,0.00022477,2]
[336897598,1725237053048,-1308.38,0.00022477,2]
[336897599,1725237053057,-500.0,0.00022477,2]
[336897600,1725237053067,-500.0,0.00022477,2]
[336897601,1725237053076,-500.0,0.00022477,2]
[336897602,1725237053090,-1113.57,0.00022477,2]
[336897603,1725237053099,-500.0,0.00022477,2]
[336897604,1725237053109,-500.0,0.00022477,2]
[336897605,1725237053118,-602.46,0.00022477,2]
[336897606,1725237053128,-607.64,0.00022477,2]
[336897607,1725237053137,-500.0,0.00022477,2]
[336897608,1725237053147,-500.0,0.00022477,2]
[336897609,1725237053156,-878.85,0.00022477,2]
[336897610,1725237053167,-886.34,0.00022477,2]
[336897611,1725237053177,-1232.47,0.00022477,2]